Cogmind - Beta 15 @@@ ROGUE MODE // 2025.07.27 @ 21:54:01 Player: Alex Result: Destroyed by Y-45 Defender with Beam Rifle Performance ------------- Evolutions (1) 500 Regions Visited (2) 400 Robots Destroyed (11) 55 Value Destroyed (314) 314 Prototype IDs (0) 0 Alien Tech Used (0) 0 Bonus (0) 0 TOTAL SCORE: 1269 Bonus ------- None Cogmind --------- Core Integrity 0/400 Matter 240/300 Energy 80/100 System Corruption 2% Temperature Cool (9) Movement Walking (190) Ox1 Location -9/Materials Parts ------- > --- POWER (2) -------- (None) > --- PROPULSION (2) --- Aluminum Leg Aluminum Leg > --- UTILITY (3) ------ Improved Heat Sink Large Storage Unit > --- WEAPON (2) ------- (None) > --- INVENTORY (15) --- Ion Engine Light Ion Engine Aluminum Leg Heat Sink Terrain Scanner Terrain Scan Processor Peak State ------------ > --- POWER ------------ Light Ion Engine Light Nuclear Core > --- PROPULSION ------- Aluminum Leg Aluminum Leg > --- UTILITY ---------- Improved Heat Sink Small Storage Unit Improved Terrain Scanner > --- WEAPON ----------- Assault Rifle Assault Rifle > --- INVENTORY -------- Light Treads Light Treads Light Assault Rifle Mining Laser [Rating: 15] Favorites ----------- Power Improved Ion Engine Engine Improved Ion Engine Power Core Light Nuclear Core Propulsion Light Treads Treads Light Treads Leg Aluminum Leg Wheel Wheel Utility Small Storage Unit Device Improved Heat Sink Storage Small Storage Unit Protection Medium Armor Plating Weapon Assault Rifle Ballistic Gun Assault Rifle Special Weapon Mining Laser Build | -11 -10 -9 ------- Run | Yrd Mat Mat Slots Evolved 2 | . . 2 Power 1 | . . 1 Propulsion . | . . . Utility 1 | . . 1 Weapon . | . . . Parts Attached 28 | 9 1 18 Power 8 | 1 1 6 Engine 6 | 1 . 5 Core 2 | . 1 1 Reactor . | . . . Propulsion 8 | 3 . 5 Treads 2 | 1 . 1 Leg 4 | . . 4 Wheel 2 | 2 . . Hover . | . . . Flight . | . . . Utility 8 | 2 . 6 Device 4 | 1 . 3 Storage 2 | 1 . 1 Processor . | . . . Hackware . | . . . Protection 2 | . . 2 Artifact . | . . . Weapon 4 | 3 . 1 Energy Gun . | . . . Energy Cannon . | . . . Ballistic Gun 3 | 3 . . Ballistic Cannon . | . . . Launcher . | . . . Special Weapon 1 | . . 1 Impact Weapon . | . . . Slashing Weapon . | . . . Piercing Weapon . | . . . Special Melee Weapon . | . . . Unidentified Prototypes . | . . . Parts Lost 16 | . . 16 Power 5 | . . 5 Propulsion 4 | . . 4 Utility 3 | . . 3 Weapon 4 | . . 4 Highest Loss Streak 8 | . . 8 To Critical Strikes 2 | . . 2 Average Backups 6 | 3 7 7 Power 1 | . 1 1 Propulsion 2 | 2 4 2 Utility 1 | . . 2 Weapon . | . 2 . Tool/Special . | . . . Unused Backups 4 | . . 4 Power 1 | . . 1 Propulsion 1 | . . 1 Utility 2 | . . 2 Weapon . | . . . Tool/Special . | . . . Average Slot Usage (%) 78 | . 100 74 Engine 9 | . 7 10 Core 5 | . 6 5 Treads 12 | . . 14 Leg 5 | . . 6 Wheel 4 | . 28 . Device 13 | . 14 13 Storage 11 | . 14 11 Protection 4 | . . 5 Ballistic Gun 9 | . 28 5 Special Weapon 2 | . . 2 Peak Build Rating 15 | 9 12 15 Average Rating 10 | 5 10 11 On Entrance 7 | . 9 12 Naked Turns . | . . . Heaviest Build 35 | 13 15 35 Greatest Support 40 | 20 20 40 Greatest Overweight (x) 10 | . . 10 Average Overweight (x) . | . . . Largest Inventory Capacity 15 | 8 8 15 Average Capacity 9 | 7 8 9 Most Carried 8 | 7 8 8 Average Carried 6 | 3 7 7 Final Capacity 15 | 8 8 15 Final Carried 8 | 7 8 6 Class Distribution -------------------- 68% | Mutant 31% | Scavenger-Mutant Dominant Class ---------------- Mutant | -10/Materials Mutant | -9/Materials Resources | -11 -10 -9 ----------- Run | Yrd Mat Mat Matter Collected 541 | 310 88 143 Remotely . | . . . Salvage Created 384 | 91 89 204 Parts 30 | 7 6 17 Haulers Intercepted . | . . . Recyclers Shooed . | . . . Parts Field Recycled . | . . . Retrieved Matter . | . . . Parts Self-Destructed . | . . . Prevented . | . . . Kills | -11 -10 -9 ------- Run | Yrd Mat Mat Combat Hostiles Destroyed 8 | . 2 6 Melee 1 | . . 1 Guns 4 | . 2 2 Cannons 3 | . . 3 Classes Destroyed 6 | 2 1 3 Builder 1 | . . 1 Tunneler 1 | 1 . . Recycler 1 | 1 . . Swarmer 1 | . . 1 Grunt 5 | . 2 3 Sentry 2 | . . 2 Best Kill Streak 3 | 2 2 3 Combat Bots Only 3 | . 2 3 Max Kills in Single Turn 1 | 1 1 1 Gunslinging . | . . . Exploded . | . . . Melee 1 | . . 1 Uniques/NPCs Destroyed . | . . . Combat | -11 -10 -9 -------- Run | Yrd Mat Mat Hostile Shots Fired 218 | . 28 190 Missed 54 | . 4 50 Hits 164 | . 24 140 Projectile 164 | . 24 140 Critical Strikes 7 | . . 7 Damage Taken 1960 | 2 300 1658 Core 514 | 2 107 405 Absorbed by Shields . | . . . Core Remaining (%) 77 | 99 56 . Volleys Fired 37 | 4 13 20 Largest 2 | 2 2 2 Hottest 100 | 40 40 100 Shots Fired 59 | 8 26 25 Gun 54 | 8 26 20 Cannon . | . . . Launcher . | . . . Special 5 | . . 5 Kinetic 54 | 8 26 20 Thermal 5 | . . 5 Explosive . | . . . Electromagnetic . | . . . Robot Hit Streak 7 | 4 7 7 Robot Miss Streak 3 | 1 3 3 Penetration Max . | . . . Secondary Targets 1 | . 1 . Max Gunslinging Chain 1 | . 1 . Shots Hit Robots 37 | 5 18 14 Core Hits 23 | 3 5 15 Critical Kills . | . . . Critical Parts Destroyed . | . . . Critical Strikes . | . . . Melee Attacks . | . . . Impact . | . . . Slashing . | . . . Piercing . | . . . Sneak Attacks . | . . . Combat Hostiles . | . . . Follow-up Attacks . | . . . Damage Inflicted 532 | 66 242 224 Guns 439 | 62 242 135 Cannons . | . . . Explosions . | . . . Melee . | . . . Ramming 21 | 4 . 17 Kinetic 439 | 62 242 135 Thermal 72 | . . 72 Explosive . | . . . Electromagnetic . | . . . Impact . | . . . Slashing . | . . . Piercing . | . . . Highest Corruption 2 | . . 2 Average Corruption 2 | . . 2 Corruption Purged . | . . . Corruption Blocked . | . . . Effects 6 | . . 6 Message Errors 2 | . . 2 Heat Flow Errors 1 | . . 1 Energy Discharges 1 | . . 1 Data Loss (minor) 1 | . . 1 Alerts 1 | . . 1 Overload Shots . | . . . Overflow Damage . | . . . Projectiles . | . . . Explosions . | . . . Melee . | . . . Knockbacks . | . . . Impact . | . . . Kinetic . | . . . Secondary . | . . . Self-Inflicted Damage 2 | 2 . . Shots . | . . . Rammed 4 | 1 . 3 Targets Rammed 7 | 1 . 6 Kicked 2 | . . 2 Crushed 1 | . . 1 Highest Temperature 202 | . 10 202 Average Temperature 26 | . 4 47 Received Heat Transfer 711 | . 177 534 Siege Activations . | . . . Martial Activations . | . . . Shielding Activations . | . . . Robots Disrupted . | . . . Combat Hostiles . | . . . Robots Corrupted . | . . . Combat Hostiles . | . . . Parts Fried . | . . . Impact Corruptions . | . . . Robots Melted . | . . . Combat Hostiles . | . . . Parts Melted 1 | . . 1 Heat Transferred 150 | . . 150 Parts Sabotaged . | . . . Parts Stolen . | . . . Parts Stripped . | . . . Power Chain Reactions . | . . . Alert | -11 -10 -9 ------- Run | Yrd Mat Mat Maximum Alert Level . | . . . Low Security (%) 100 | 100 100 100 Level 1 . | . . . Level 2 . | . . . Level 3 . | . . . Level 4 . | . . . Level 5 . | . . . High Security . | . . . Max Security . | . . . Peak Influence 60 | 5 40 60 Initial 3 | . 3 . Average 8 | 1 13 8 Influence Increases 261 | 10 50 201 Destroy 0b10 Robot/C 160 | . 40 120 Destroy 0b10 Robot/NC 15 | 10 . 5 Destroy Leader 40 | . 10 30 Destroy Structure 1 | . . 1 Lose Combat Pursuer 45 | . . 45 Influence Decreases 260 | 5 55 200 Entered New Map 2 | . 2 . Time Decay 194 | 5 53 136 Lost Part 64 | . . 64 Squads Dispatched . | . . . Investigation . | . . . Extermination . | . . . Reinforcement . | . . . Assault . | . . . Garrison . | . . . Intercept . | . . . Searches Triggered . | . . . Construction Impeded . | . . . Haulers Reinforced . | . . . Active Scanning Responses . | . . . Cargo Convoy Interrupts . | . . . Stealth | -11 -10 -9 --------- Run | Yrd Mat Mat Distress Signals 1 | . 1 . Communications Jammed . | . . . Distress Signals . | . . . Times Spotted 26 | . 5 21 Peak Tracking Total 7 | . 4 7 Tactical Retreats 2 | . . 2 Traps | -11 -10 -9 ------- Run | Yrd Mat Mat Traps Triggered 5 | . . 5 Indirectly . | . . . Trap Hack Attempts . | . . . Triggered . | . . . Disarmed . | . . . Reprogrammed . | . . . Reused . | . . . Traps Extracted . | . . . Installed . | . . . Triggered . | . . . Machines | -11 -10 -9 ---------- Run | Yrd Mat Mat Machines Disabled . | . . . Max in Single Turn . | . . . Machines Repaired . | . . . Machines Dismantled . | . . . Machines Sabotaged . | . . . Overloaded Fab Kills . | . . . Hacking | -11 -10 -9 --------- Run | Yrd Mat Mat Machines Accessed 2 | . . 2 Terminals 2 | . . 2 Fabricators . | . . . Repair Stations . | . . . Recycling Units . | . . . Scanalyzers . | . . . Garrison Access . | . . . Total Hacks 5 | . . 5 Successful 2 | . . 2 Failed 3 | . . 3 Catastrophic . | . . . Database Lockouts . | . . . Manual 1 | . . 1 Terminals 5 | . . 5 Fabricators . | . . . Repair Stations . | . . . Recycling Units . | . . . Scanalyzers . | . . . Garrison Access . | . . . Terminal Hacks 2 | . . 2 Record 1 | . . 1 Locate Traps 1 | . . 1 Fabricator Hacks . | . . . Repair Station Hacks . | . . . Recycling Unit Hacks . | . . . Scanalyzer . | . . . Garrison Access Hacks . | . . . Unauthorized Hacks . | . . . Terminals . | . . . Fabricators . | . . . Repair Stations . | . . . Recycling Units . | . . . Scanalyzers . | . . . Garrison Access . | . . . Data Cores Recovered . | . . . Used . | . . . Hacking Detections 2 | . . 2 Full Trace Events 1 | . . 1 Feedback Events . | . . . Feedback Blocked . | . . . Robot Schematics Acquired . | . . . Robots Built . | . . . Authchips . | . . . Time . | . . . Total Robot Build Rating . | . . . Part Schematics Acquired . | . . . Parts Built . | . . . Authchips . | . . . Time . | . . . Total Part Build Rating . | . . . Parts Repaired . | . . . Time . | . . . Parts Recycled . | . . . Recycled Matter . | . . . Retrieved Matter . | . . . Retrieved Components . | . . . Parts Scanalyzed . | . . . Part Schematics Acquired . | . . . Parts Damaged . | . . . Bothacking | -11 -10 -9 ------------ Run | Yrd Mat Mat Used RIF Installer . | . . . Robots Hacked . | . . . Non-combat . | . . . Combat . | . . . Robot Hacks Applied . | . . . Relay Couplers Released . | . . . Fabnet Peak Effective % . | . . . Robots Rewired . | . . . Allies Hacked . | . . . Hacks Repelled . | . . . Allies | -11 -10 -9 -------- Run | Yrd Mat Mat Total Allies . | . . . Largest Group . | . . . Highest-Rated Group . | . . . Highest-Rated Ally . | . . . Total Orders . | . . . Ally Attacks . | . . . Total Damage . | . . . Kills . | . . . Allies Corrupted . | . . . Allies Melted . | . . . Intel | -11 -10 -9 ------- Run | Yrd Mat Mat Active Infowar (turns) 396 | 27 147 222 Terrain 396 | 27 147 222 Robot Analysis Total . | . . . Derelict Logs Recovered . | . . . Drone Launches . | . . . Drone Recoveries . | . . . Exploration | -11 -10 -9 ------------- Run | Yrd Mat Mat Turns Passed 1036 | 98 147 791 Spaces Moved 626 | 77 132 417 Core 10 | 4 . 6 Treads 292 | 7 . 285 Legs 126 | . . 126 Wheels 198 | 66 132 . Hover . | . . . Flight . | . . . Fastest Speed 50 | 50 80 100 Average Speed 134 | 85 80 160 Slowest Speed 550 | 160 80 550 Overloaded Moves . | . . . Propulsion Burnouts . | . . . Robots Hopped . | . . . Potential Cave-ins . | . . . Cave-ins Triggered . | . . . Exploration Rate (%) 19 | 5 23 29 Regions Visited 2 Branch Regions . Pre-discovered Areas . | . . . Known Exits Taken . | . . . Unknown Exits Taken 2 | 1 1 . Scrap Searched . | . . . Spaces Dug . | . . . Terrain Destroyed 1 | . . 1 Melee . | . . . Projectile 1 | . . 1 AOE . | . . . Terrain Rammed . | . . . Walls Destroyed . | . . . Machines Disabled . | . . . Actions | -11 -10 -9 --------- Run | Yrd Mat Mat Total 742 | 96 147 499 Wait 17 | . . 17 Move 624 | 76 131 417 Hop . | . . . Pick Up 13 | 5 1 7 Fast Attach 19 | 8 . 11 Attach 10 | . . 10 Detach 2 | 1 . 1 Swap 6 | 1 1 4 Drop 7 | . 1 6 Fire 37 | 4 13 20 Melee . | . . . Ram 2 | 1 . 1 Kick 2 | . . 2 Crush 3 | . . 3 Escape Stasis . | . . . Rewire . | . . . Trap . | . . . Miscellaneous . | . . . Route ------- -11/Scrapyard -10/Materials -9/Materials (discovered 1 exit: [*Sto]) History --------- Turn | Location | Event 35 | -11/Scrapyard | Discovered new exit (range 15) 99 | -11/Scrapyard | Entered Materials 177 | -10/Materials | Discovered new exit (range 10) 246 | -10/Materials | Entered another Materials area 246 | -9/Materials | Evolved 2 slots: Power x1, Utility x1 514 | -9/Materials | Lost 8 parts (2p2n2u2w) 982 | -9/Materials | Core integrity fell below 50% 1008 | -9/Materials | Build established: Mutant 1024 | -9/Materials | Core integrity fell below 20% 1033 | -9/Materials | Discovered new exit (range 14) 1037 | -9/Materials | Destroyed by Y-45 Defender with Beam Rifle Last Messages --------------- Connecting with Terminal... >>Traps(Locate) Found 2 traps in 1 array: 2x Shock Trap Map updated. Slammed into S-10 Pest. Crushed S-10 Pest. S-10 Pest destroyed. Acquired Lgt. Ion Engine. Critical hit (Destroy). Lgt. Treads destroyed. Imp. Ion Engine destroyed. Lgt. Ion Engine destroyed. Slammed into W-16 Scout. S-10 Pest destroyed. M-13 Machinist repairs S-10 Pest. Critical hit (Burn: +37). EXIT=FOUND K-01 Serf collects debris. System corrupted: IFF burst signal emitted. Map ----- +----------------------------------------------------+ | #######??????# #???????????????????????????????? | | #??????# #???##??????????????????????????? | | """ #??????# #???# ######????????????????????? | | """ ######## #???#!! ! #????????????????????? | | """ # #???#!! #????????????????????? | | # #???# """#????????????????????? | | """ # #???#! R"#????????????????????? | | """ + ########???# """#????????????????????? | | """ # #???????????? ?????????????????????? | | # ###############+#########+## ???????? | | """ # ??????? | | """ # ??????? | | """ # ??????? | | # ###############/#######+#+## ???????? | | ####### ^^##########??# !#???????????????????? | | ??????# # #??# #???????????????????? | | ??????# # #??# """ "#???????????????????? | | ??????# # #### """ T#???????????????????? | | ?##???# # + / """ "#???????????????????? | | ## #### + #### #???????????????????? | | # # ##?########???????????????????? | | """ # # #?????????????????????????????? | | """ # # #?????????????????????????????? | | """ # # #???#######???????????????????? | | # #####+######## #???????????????????? | | """ !# %=us @ #???????????????????? | | """ +% s ; """?????????????? | | """ # k Y # """?????????????? | | ####+### ####### #? """?????????????? | | " ## # #?#???## ##????? ?????????????? | | ! T ## # #???#??# #????????????????????? | | " ## # ######## #? ??????????????????? | | ## # # ## #?#??????????????????? | | ######## # % # """ ## ##???????????????????? | | ## # # """ #? #????????????????????? | | ## # # """ #? ##????#??????????????? | | ######## # #? ????????????????????? | | ##???#?# # """ # ????????????????????? | | ######## # """ # Y ???????????????????? | | # # """ #? ????????????????????? | | + + #? ?????????????????????? | | # # #?????#???????????????????? | | # ##### ## #??#??????????????????????? | | # #???# ## #?#?#???"?????????????????? | | # #####+########??#?????"????????????????? | | # # #??#??????????????????????????? | | # # #???????##????????????????????? | | ####### # ##?#?#?##?????????????????????? | | ?#????# # """ #????????#????????????????????? | | ####### + """"" #?????#??#????????????????????? | +----------------------------------------------------+ Best States ------------- Heat Dissipation 42 Energy Generation 21 Energy Capacity 415 Matter Stores 300 Matter Capacity 300 Sight Range 16 Terrain Scan Range 16 Terrain Scan Density 10 Armor Coverage 225 Evasion (%) 55 Recoil Reduction 2 Item Schematics ----------------- None Robot Schematics ------------------ None Fabricated ------------ Nothing Repaired ---------- Nothing Alien Tech Used ----------------- None Achievements -------------- None Challenges ------------ None Game ------ Seed LongswordWeaponsShifter Manual? 0 Play Time 00:12:33 Cumulative 6.9 hours Start 2025.07.27 @ 21:42:07 End 2025.07.27 @ 21:54:01 Sessions 1 Manual Loads 0 Difficulty Rogue Special Mode None Game No. 13 Rogue 8 Adventurer 5 Explorer 0 Win Type - Total 0 Types 0/0/0/0/0/0/0/0/0/0 Lore% 9 Gallery% 9 Achievement% 12 Wizard Run 0 Options --------- Layout 0 ASCII 0 Keyboard 1 Movement Arrows Keybinds 0 Fullscreen 1 Font 18/SmallcapsGlow Map View 76x50 Zoom Use 0% Tactical HUD 0 Map Filters NONE Filters NONE Steam 1 RUN: 631d2da2-36db-4017-85b7-fd0d47ecda2e